fUST/lending_fUST_20240329
["ID","MTS","AMOUNT","RATE_DAILY","PERIOD"]
[320903915,1711683045674,-500.0,0.00052054,120]
[320903916,1711683045684,-500.0,0.00052054,120]
[320903917,1711683045698,-501.51513884,0.00052054,120]
[320903918,1711683045711,-500.0,0.00052054,120]
[320903919,1711683045723,-500.0,0.00052054,120]
[320903920,1711683045737,-504.96182447,0.00052054,120]
[320903921,1711683045751,-500.0,0.00052054,120]
[320903922,1711683045761,-500.0,0.00052054,120]
[320903923,1711683045773,-588.91966247,0.00052054,120]
[320903924,1711683045789,-500.0,0.00052054,120]
[320903925,1711683045808,-500.0,0.00052054,120]
[320903926,1711683045821,-500.0,0.00052054,120]
[320903928,1711683045833,-151.0,0.00052054,7]
[320903929,1711683045846,-151.0,0.00052054,7]
[320903930,1711683045859,-151.0,0.00052054,7]
[320903931,1711683045874,-151.0,0.00052054,7]
[320903932,1711683045888,-151.0,0.00052054,7]
[320903933,1711683045902,-151.0,0.00052054,7]
[320903934,1711683045916,-151.0,0.00052054,7]
[320903935,1711683045928,-151.0,0.00052054,7]
[320903936,1711683045940,-151.0,0.00052054,7]
[320903937,1711683045951,-151.0,0.00052054,7]
[320903938,1711683045964,-500.0,0.00052054,120]
[320903939,1711683045977,-241.300619,0.00052054,7]
[320903940,1711683045989,-500.0,0.00052054,120]
[320903941,1711683046002,-500.0,0.00052054,120]
[320903942,1711683046013,-500.0,0.00052054,120]
[320903943,1711683046025,-500.0,0.00052054,120]
[320903944,1711683046035,-500.0,0.00052054,120]
[320903945,1711683046047,-500.0,0.00052054,120]
[320903946,1711683046059,-500.0,0.00052054,120]
[320903947,1711683046073,-349.5354653,0.00052054,120]
[320903948,1711683046084,-500.0,0.00052054,120]
[320903949,1711683046096,-500.0,0.00052054,120]
[320903950,1711683046108,-445.51560991,0.00052054,120]
[320903951,1711683046120,-608.920284,0.00052054,7]
[320903952,1711683046131,-608.920284,0.00052054,7]
[320903953,1711683046143,-608.920284,0.00052054,7]
[320903954,1711683046154,-608.920284,0.00052054,7]
[320903955,1711683046164,-608.920284,0.00052054,7]
[320903956,1711683046175,-608.920284,0.00052054,7]
[320903957,1711683046187,-608.920284,0.00052054,7]
[320903958,1711683046199,-608.920284,0.00052054,7]
[320903959,1711683046212,-608.920284,0.00052054,7]
[320903960,1711683046224,-608.920284,0.00052054,7]
[320903961,1711683046237,-608.920284,0.00052054,7]
[320903962,1711683046249,-608.920284,0.00052054,7]
[320903963,1711683046262,-608.920284,0.00052054,7]
[320903964,1711683046273,-608.920284,0.00052054,7]
[320903965,1711683046284,-608.920284,0.00052054,7]
[320903966,1711683046295,-608.920284,0.00052054,7]
[320903967,1711683046307,-608.920284,0.00052054,7]
[320903968,1711683046318,-608.920293,0.00052054,7]
[320903969,1711683046330,-500.0,0.00052054,7]
[320903970,1711683046341,-500.0,0.00052054,120]
[320903971,1711683046353,-500.0,0.00052054,120]
[320903972,1711683046364,-151.0,0.00052054,7]
[320903973,1711683046376,-605.38799774,0.00052054,120]
[320903974,1711683046387,-491.50739278,0.00052054,120]
[320903975,1711683046398,-500.0,0.00052054,120]
[320903976,1711683046411,-501.09542737,0.00052054,120]
[320903977,1711683046515,-500.0,0.00052054,120]
[320903978,1711683046530,-500.0,0.00052054,120]
[320903979,1711683046539,-500.0,0.00052054,120]
[320903980,1711683046548,-500.0,0.00052054,120]
[320903981,1711683046557,-500.0,0.00052054,120]
[320903982,1711683046567,-502.61263761,0.00052054,120]
[320903983,1711683046577,-500.0,0.00052054,120]
[320903984,1711683046586,-393.22605332,0.00052054,120]
[320903985,1711683046595,-153.516337,0.00052054,7]
[320903986,1711683046605,-500.0,0.00052054,120]
[320903987,1711683046614,-485.3922138,0.00052054,120]
[320903988,1711683046623,-1417.95,0.00052054,120]
[320903989,1711683046631,-500.0,0.00052054,120]
[320903990,1711683046640,-500.0,0.00052054,120]
[320903991,1711683046649,-500.0,0.00052054,120]
[320903992,1711683046658,-500.0,0.00052054,2]
[320903993,1711683046667,-500.0,0.00052054,120]
[320903994,1711683046676,-500.0,0.00052054,120]
[320903995,1711683046685,-500.0,0.00052054,120]
[320903996,1711683046694,-500.0,0.00052054,120]
[320903997,1711683046703,-383.98766338,0.00052054,120]
[320903998,1711683046712,-500.0,0.00052054,120]
[320903999,1711683046721,-500.0,0.00052054,120]
[320904000,1711683046730,-500.0,0.00052054,120]
[320904001,1711683046738,-933.37,0.00052054,120]
[320904002,1711683046747,-500.0,0.00052054,120]
[320904003,1711683046756,-500.0,0.00052054,120]
[320904004,1711683046765,-500.0,0.00052054,120]
[320904005,1711683046774,-151.0,0.00052054,7]
[320904006,1711683046784,-151.0,0.00052054,7]
[320904007,1711683046796,-500.0,0.00052054,120]
[320904008,1711683046805,-151.0,0.00052054,7]
[320904009,1711683046814,-151.0,0.00052054,7]
[320904010,1711683046824,-169.258562,0.00052054,7]
[320904011,1711683046833,-500.0,0.00052054,120]
[320904012,1711683046842,-500.0,0.00052054,120]
[320904013,1711683046851,-500.0,0.00052054,120]
[320904014,1711683046861,-500.0,0.00052054,120]
[320904015,1711683046870,-500.0,0.00052054,7]
[320904016,1711683046880,-500.0,0.00052054,120]
[320904017,1711683046890,-500.0,0.00052054,120]
[320904018,1711683046899,-488.00583698,0.00052054,120]
[320904019,1711683046907,-500.0,0.00052054,120]
[320904020,1711683046916,-500.0,0.00052054,120]
[320904021,1711683046926,-501.03842788,0.00052054,120]
[320904022,1711683046935,-500.0,0.00052054,120]
[320904023,1711683046944,-500.0,0.00052054,120]
[320904024,1711683046953,-500.0,0.00052054,120]
[320904025,1711683046962,-500.0,0.00052054,120]
[320904026,1711683046972,-500.0,0.00052054,120]
[320904027,1711683046981,-500.0,0.00052054,120]
[320904028,1711683046990,-500.0,0.00052054,120]
[320904029,1711683046999,-500.0,0.00052054,120]
[320904030,1711683047008,-604.77692857,0.00052054,120]
[320904031,1711683047017,-500.0,0.00052054,120]
[320904032,1711683047026,-500.0,0.00052054,120]
[320904033,1711683047035,-500.0,0.00052054,120]
[320904034,1711683047043,-500.0,0.00052054,120]
[320904035,1711683047052,-500.0,0.00052054,120]
[320904036,1711683047061,-774.54,0.00052054,120]
[320904037,1711683047070,-500.0,0.00052054,120]
[320904038,1711683047079,-1083.75,0.00052054,120]
[320904039,1711683047087,-500.0,0.00052054,120]
[320904040,1711683047096,-500.0,0.00052054,120]
[320904041,1711683047105,-500.0,0.00052054,120]
[320904042,1711683047113,-502.91634459,0.00052054,120]
[320904043,1711683047122,-964.18,0.00052054,120]
[320904044,1711683047131,-518.3,0.00052054,120]
[320904045,1711683047140,-500.0,0.00052054,120]
[320904046,1711683047149,-498.20379783,0.00052054,120]
[320904047,1711683047157,-500.98465439,0.00052054,120]
[320904048,1711683047166,-500.0,0.00052054,120]
[320904049,1711683047175,-504.61962351,0.00052054,120]
[320904050,1711683047184,-500.0,0.00052054,120]
[320904051,1711683047193,-151.0,0.00052054,7]
[320904052,1711683047202,-151.0,0.00052054,7]
[320904053,1711683047212,-153.065987,0.00052054,7]
[320904054,1711683047221,-500.77102217,0.00052054,120]
[320904055,1711683047230,-500.0,0.00052054,120]
[320904056,1711683047239,-500.0,0.00052054,120]
[320904057,1711683047248,-500.0,0.00052054,120]
[320904058,1711683047257,-500.0,0.00052054,120]
[320904059,1711683047266,-500.0,0.00052054,120]
[320904060,1711683047274,-623.46,0.00052054,120]
[320904061,1711683047284,-500.0,0.00052054,120]
[320904062,1711683047293,-4205.98,0.00052054,120]
[320904063,1711683047302,-500.0,0.00052054,120]
[320904064,1711683047313,-500.0,0.00052054,20]
[320904065,1711683047322,-501.89290688,0.00052054,120]
[320904066,1711683047331,-698.06,0.00052054,120]
[320904067,1711683047340,-18302.25,0.00052054,90]
[320904068,1711683047349,-500.0,0.00052054,120]
[320904069,1711683047358,-788.18,0.00052054,120]
[320904070,1711683047368,-788.18,0.00052054,120]
[320904071,1711683047377,-788.18,0.00052054,120]
[320904072,1711683047386,-788.18,0.00052054,120]
[320904073,1711683047396,-788.18,0.00052054,120]
[320904074,1711683047405,-500.0,0.00052054,120]
[320904075,1711683047414,-788.18,0.00052054,120]
[320904076,1711683047423,-788.18,0.00052054,120]
[320904077,1711683047432,-788.18,0.00052054,120]
[320904078,1711683047441,-788.18,0.00052054,120]
[320904079,1711683047451,-788.18,0.00052054,120]
[320904080,1711683047461,-788.18,0.00052054,120]
[320904081,1711683047470,-219.405979,0.00052054,7]
[320904082,1711683047479,-788.18,0.00052054,120]
[320904083,1711683047488,-219.405979,0.00052054,7]
[320904084,1711683047497,-219.405979,0.00052054,7]
[320904085,1711683047506,-502.04162616,0.00052054,120]
[320904086,1711683047515,-219.405979,0.00052054,7]
[320904087,1711683047524,-219.405979,0.00052054,7]
[320904088,1711683047533,-219.405979,0.00052054,7]
[320904089,1711683047542,-219.405979,0.00052054,7]
[320904090,1711683047551,-219.405979,0.00052054,7]
[320904091,1711683047561,-500.0,0.00052054,120]
[320904092,1711683047570,-219.405979,0.00052054,7]
[320904093,1711683047579,-219.405979,0.00052054,7]
[320904094,1711683047589,-219.405979,0.00052054,7]
[320904095,1711683047597,-219.405979,0.00052054,7]
[320904096,1711683047606,-219.405979,0.00052054,7]
[320904097,1711683047615,-219.405973,0.00052054,7]
[320904098,1711683047625,-500.0,0.00052054,120]
[320904099,1711683047634,-500.0,0.00052054,120]
[320904100,1711683047643,-500.0,0.00052054,120]
[320904101,1711683047652,-500.0,0.00052054,120]
[320904102,1711683047661,-500.0,0.00052054,120]
[320904103,1711683047671,-500.0,0.00052054,120]
[320904104,1711683047680,-500.0,0.00052054,120]
[320904105,1711683047690,-4562.48,0.00052054,21]
[320904106,1711683047701,-500.98907361,0.00052054,120]
[320904107,1711683047712,-500.0,0.00052054,120]
[320904108,1711683047722,-500.0,0.00052054,120]
[320904109,1711683047731,-500.0,0.00052054,120]
[320904110,1711683047741,-500.0,0.00052054,120]
[320904111,1711683047752,-151.0,0.00052054,7]
[320904112,1711683047762,-151.0,0.00052054,7]
[320904113,1711683047771,-151.0,0.00052054,7]
[320904114,1711683047782,-160.741511,0.00052054,7]
[320904115,1711683047793,-500.0,0.00052054,120]
[320904116,1711683047805,-500.0,0.00052054,120]
[320904117,1711683047815,-500.0,0.00052054,120]
[320904118,1711683047824,-741.72,0.00052054,120]
[320904119,1711683047834,-500.0,0.00052054,120]
[320904120,1711683047843,-500.0,0.00052054,120]
[320904121,1711683047852,-1319.23,0.00052054,120]
[320904122,1711683047863,-500.0,0.00052054,120]
[320904123,1711683047874,-251.016972,0.00052054,7]
[320904124,1711683047884,-251.016972,0.00052054,7]
[320904125,1711683047895,-251.016972,0.00052054,7]
[320904126,1711683047904,-251.016972,0.00052054,7]
[320904127,1711683047914,-251.016972,0.00052054,7]
[320904128,1711683047923,-251.016972,0.00052054,7]
[320904129,1711683047933,-251.016972,0.00052054,7]
[320904130,1711683047942,-501.31044003,0.00052054,120]
[320904131,1711683047951,-251.016972,0.00052054,7]
[320904132,1711683047963,-251.016972,0.00052054,7]
[320904133,1711683047972,-251.016972,0.00052054,7]
[320904134,1711683047981,-251.016972,0.00052054,7]
[320904135,1711683047990,-251.016972,0.00052054,7]
[320904136,1711683047999,-503.05987245,0.00052054,120]
[320904137,1711683048008,-251.016972,0.00052054,7]
[320904138,1711683048017,-251.016972,0.00052054,7]
[320904139,1711683048026,-500.0,0.00052054,120]
[320904140,1711683048035,-500.0,0.00052054,120]
[320904141,1711683048045,-3305.99,0.00052054,120]
[320904142,1711683048054,-500.0,0.00052054,120]
[320904143,1711683048064,-500.0,0.00052054,120]
[320904144,1711683048074,-500.98704555,0.00052054,120]
[320904145,1711683048084,-500.0,0.00052054,120]
[320904146,1711683048094,-501.67643916,0.00052054,120]
[320904147,1711683048104,-501.4443977,0.00052054,120]
[320904148,1711683048114,-500.0,0.00052054,120]
[320904149,1711683048124,-360.33145748,0.00052054,120]
[320904150,1711683048134,-1095.69092619,0.00052054,120]
[320904151,1711683048144,-1520.3,0.00052054,120]
[320904152,1711683048154,-510.60864682,0.00052054,120]
[320904153,1711683048164,-501.61459173,0.00052054,120]
[320904154,1711683048174,-500.0,0.00052054,120]
[320904155,1711683048184,-501.58387958,0.00052054,120]
[320904156,1711683048194,-500.0,0.00052054,120]
[320904157,1711683048204,-500.0,0.00052054,120]
[320904158,1711683048214,-559.96,0.00052054,120]
[320904159,1711683048223,-465.22144363,0.00052054,120]
[320904160,1711683048232,-500.73586636,0.00052054,120]
[320904161,1711683048242,-500.0,0.00052054,120]
[320904162,1711683048251,-513.80498793,0.00052054,120]
[320904163,1711683048261,-502.34863364,0.00052054,4]
[320904164,1711683048273,-500.0,0.00052054,120]
[320904165,1711683048282,-151.0,0.00052054,7]
[320904166,1711683048291,-155.433122,0.00052054,7]
[320904167,1711683048300,-500.0,0.00052054,120]
[320904168,1711683048309,-501.21128475,0.00052054,120]
[320904169,1711683048318,-500.0,0.00052054,120]
[320904170,1711683048328,-598.38,0.00052054,120]
[320904171,1711683048400,-496.981092,0.00052054,120]
[320904172,1711683048419,-500.0,0.00052054,120]
[320904173,1711683048429,-500.0,0.00052054,120]
[320904174,1711683048439,-500.64161861,0.00052054,120]
[320904175,1711683048449,-836.94,0.00052054,120]
[320904176,1711683048460,-500.0,0.00052054,120]
[320904177,1711683048470,-500.0,0.00052054,120]
[320904178,1711683048480,-500.0,0.00052054,120]
[320904179,1711683048489,-500.0,0.00052054,120]
[320904180,1711683048498,-3078.25,0.00052054,120]
[320904181,1711683048507,-500.0,0.00052054,120]
[320904182,1711683048516,-500.0,0.00052054,120]
[320904183,1711683048525,-500.0,0.00052054,120]
[320904184,1711683048535,-502.65681665,0.00052054,120]
[320904185,1711683048544,-500.0,0.00052054,120]
[320904186,1711683048553,-501.61786838,0.00052054,120]
[320904187,1711683048562,-500.0,0.00052054,60]
[320904188,1711683048572,-1000.0,0.00052054,2]
[320904189,1711683048581,-500.0,0.00052054,120]
[320904190,1711683048590,-500.0,0.00052054,120]
[320904191,1711683048599,-510.31258621,0.00052054,120]
[320904192,1711683048608,-2121.86092972,0.00052776,2]
[320904193,1711683048618,-817.78293986,0.00052875,4]
[320904194,1711683048627,-788.18,0.00052875,120]
[320904195,1711683048637,-788.18,0.00052875,120]
[320904196,1711683048646,-788.18,0.00052875,120]
[320904197,1711683048655,-500.0,0.00052876,120]
[320904198,1711683048664,-500.0,0.00052876,120]
[320904199,1711683048674,-500.0,0.00052876,120]
[320904200,1711683048683,-500.0,0.00052876,120]
[320904201,1711683048692,-500.0,0.00052876,120]
[320904202,1711683048702,-500.0,0.00052876,120]
[320904203,1711683048713,-500.0,0.00052876,120]
[320904204,1711683048722,-500.0,0.00052876,120]
[320904205,1711683048730,-504.87725708,0.00052876,120]
[320904206,1711683048739,-500.0,0.00052876,120]
[320904207,1711683048748,-500.0,0.00052876,120]
[320904208,1711683048759,-500.0,0.00052876,120]
[320904209,1711683048769,-500.0,0.00052876,120]
[320904210,1711683048780,-500.0,0.00052876,120]
[320904211,1711683048792,-500.0,0.00052876,120]
[320904212,1711683048802,-500.0,0.00052876,120]
[320904213,1711683048812,-440.81571653,0.00052876,7]
[320904214,1711683048822,-500.0,0.00052876,120]
[320904215,1711683048834,-500.0,0.00052876,120]
[320904216,1711683048843,-501.67698114,0.00052876,120]
[320904217,1711683048852,-574.71841451,0.00052876,120]
[320904218,1711683048862,-500.0,0.00052876,120]
[320904219,1711683048872,-500.0,0.00052876,120]
[320904220,1711683048883,-500.0,0.00052876,120]
[320904221,1711683048892,-500.0,0.00052876,120]
[320904222,1711683048902,-463.64697573,0.00052876,120]
[320904223,1711683048911,-500.0,0.00052876,120]
[320904224,1711683048920,-500.0,0.00052876,120]
[320904225,1711683048929,-500.0,0.00052876,120]
[320904226,1711683048939,-500.0,0.00052876,120]
[320904227,1711683048949,-500.0,0.00052876,120]
[320904228,1711683048959,-500.0,0.00052876,120]
[320904229,1711683048969,-500.0,0.00052876,120]
[320904230,1711683048978,-500.0,0.00052876,120]
[320904231,1711683048987,-506.86456445,0.00052876,120]
[320904232,1711683048996,-500.0,0.00052876,120]
[320904233,1711683049006,-500.0,0.00052876,120]
[320904234,1711683049015,-500.0,0.00052876,120]
[320904235,1711683049026,-500.0,0.00052876,120]
[320904236,1711683049036,-500.0,0.00052876,120]
[320904237,1711683049045,-500.0,0.00052876,120]
[320904238,1711683049055,-500.0,0.00052876,120]
[320904239,1711683049064,-500.0,0.00052876,120]
[320904240,1711683049074,-500.0,0.00052876,120]
[320904241,1711683049083,-500.0,0.00052876,120]
[320904242,1711683049092,-500.0,0.00052876,120]
[320904243,1711683049101,-505.17121031,0.00052876,120]
[320904244,1711683049110,-501.46295064,0.00052876,120]
[320904245,1711683049119,-500.0,0.00052876,120]
[320904246,1711683049128,-500.0,0.00052876,120]
[320904247,1711683049137,-500.0,0.00052876,120]
[320904248,1711683049146,-653.83,0.00052876,120]
[320904249,1711683049155,-500.0,0.00052876,120]
[320904250,1711683049164,-500.0,0.00052876,120]
[320904251,1711683049173,-501.07167595,0.00052876,120]
[320904252,1711683049183,-500.0,0.00052876,120]
[320904253,1711683049192,-500.0,0.00052876,120]
[320904254,1711683049201,-500.0,0.00052876,120]
[320904255,1711683049212,-500.0,0.00052876,120]
[320904256,1711683049221,-500.0,0.00052876,120]
[320904257,1711683049230,-623.39584915,0.00052876,120]
[320904258,1711683049238,-500.0,0.00052876,120]
[320904259,1711683049247,-504.31494648,0.00052876,120]
[320904260,1711683049259,-500.0,0.00052876,120]
[320904261,1711683049268,-500.0,0.00052876,120]
[320904262,1711683049277,-504.75119345,0.00052876,120]
[320904263,1711683049286,-500.0,0.00052876,120]
[320904264,1711683049295,-500.0,0.00052876,120]
[320904265,1711683049305,-500.0,0.00052876,120]
[320904266,1711683049314,-500.0,0.00052876,120]
[320904267,1711683049323,-500.0,0.00052876,120]
[320904268,1711683049333,-500.15253755,0.00052876,120]
[320904269,1711683049342,-271.09686384,0.00052876,120]
[320904270,1711683049351,-500.0,0.00052876,120]
[320904271,1711683049361,-501.82866899,0.00052876,120]
[320904272,1711683049370,-500.0,0.00052876,120]
[320904273,1711683049379,-500.0,0.00052876,120]
[320904274,1711683049389,-500.0,0.00052876,120]
[320904275,1711683049398,-500.0,0.00052876,120]
[320904276,1711683049407,-500.0,0.00052876,120]
[320904277,1711683049417,-500.0,0.00052876,120]
[320904278,1711683049426,-500.0,0.00052876,120]
[320904279,1711683049435,-500.0,0.00052876,120]
[320904280,1711683049444,-500.0,0.00052876,120]
[320904281,1711683049453,-500.0,0.00052876,120]
[320904282,1711683049464,-500.0,0.00052876,120]
[320904283,1711683049474,-502.12716221,0.00052876,120]
[320904284,1711683049483,-502.26532464,0.00052876,7]
[320904285,1711683049492,-500.0,0.00052876,120]
[320904286,1711683049501,-500.0,0.00052876,120]
[320904287,1711683049510,-500.0,0.00052876,120]
[320904288,1711683049519,-500.0,0.00052876,120]
[320904289,1711683049529,-500.0,0.00052876,120]
[320904290,1711683049538,-500.0,0.00052876,120]
[320904291,1711683049547,-500.0,0.00052876,120]
[320904292,1711683049556,-500.0,0.00052876,120]
[320904293,1711683049566,-500.0,0.00052876,120]
[320904294,1711683049575,-503.23212321,0.00052876,120]
[320904295,1711683049584,-1417.95,0.00052876,120]
[320904296,1711683049593,-500.0,0.00052876,120]
[320904297,1711683049602,-500.0,0.00052876,120]
[320904298,1711683049611,-500.0,0.00052876,120]
[320904299,1711683049620,-500.0,0.00052876,2]
[320904300,1711683049629,-500.0,0.00052876,120]
[320904301,1711683049638,-500.0,0.00052876,120]
[320904302,1711683049647,-505.30889242,0.00052876,120]
[320904303,1711683049656,-196.20558076,0.00052876,120]
[320904304,1711683049665,-500.0,0.00052876,120]
[320904305,1711683049674,-500.0,0.00052876,120]
[320904306,1711683049683,-500.0,0.00052876,120]
[320904307,1711683049692,-933.37,0.00052876,120]
[320904308,1711683049701,-500.0,0.00052876,120]
[320904309,1711683049713,-500.0,0.00052876,120]
[320904310,1711683049724,-500.0,0.00052876,120]
[320904311,1711683049733,-500.0,0.00052876,120]
[320904312,1711683049743,-500.0,0.00052876,120]
[320904313,1711683049752,-500.0,0.00052876,120]
[320904314,1711683049761,-500.0,0.00052876,120]
[320904315,1711683049770,-500.0,0.00052876,120]
[320904316,1711683049780,-496.51011184,0.00052876,7]
[320904317,1711683049790,-500.0,0.00052876,120]
[320904318,1711683049804,-500.0,0.00052876,120]
[320904319,1711683049814,-500.0,0.00052876,120]
[320904320,1711683049824,-500.0,0.00052876,120]
[320904321,1711683049833,-500.0,0.00052876,120]
[320904322,1711683049844,-502.8365319,0.00052876,120]
[320904323,1711683049853,-500.0,0.00052876,120]
[320904324,1711683049862,-501.32975376,0.00052876,120]
[320904325,1711683049871,-500.0,0.00052876,120]
[320904326,1711683049882,-500.0,0.00052876,120]
[320904327,1711683049891,-500.0,0.00052876,120]
[320904328,1711683049899,-500.0,0.00052876,120]
[320904329,1711683049909,-500.0,0.00052876,120]
[320904330,1711683049917,-500.69449412,0.00052876,120]
[320904331,1711683049926,-500.0,0.00052876,120]
[320904332,1711683049936,-504.03856578,0.00052876,120]
[320904333,1711683049945,-500.0,0.00052876,120]
[320904334,1711683049954,-774.54,0.00052876,120]
[320904335,1711683049964,-500.0,0.00052876,120]
[320904336,1711683049973,-1083.75,0.00052876,120]
[320904337,1711683049982,-500.0,0.00052876,120]
[320904338,1711683049991,-500.0,0.00052876,120]
[320904339,1711683050000,-500.0,0.00052876,120]
[320904340,1711683050010,-964.18,0.00052876,120]
[320904341,1711683050019,-518.3,0.00052876,120]
[320904342,1711683050028,-500.0,0.00052876,120]
[320904343,1711683050038,-500.0,0.00052876,120]
[320904344,1711683050047,-500.0,0.00052876,120]
[320904345,1711683050057,-574.11825089,0.00052876,120]
[320904346,1711683050066,-550.25737211,0.00052876,120]
[320904347,1711683050075,-500.0,0.00052876,120]
[320904348,1711683050084,-500.0,0.00052876,120]
[320904349,1711683050093,-500.0,0.00052876,120]
[320904350,1711683050170,-623.46,0.00052876,120]
[320904351,1711683050180,-500.0,0.00052876,120]
[320904352,1711683050189,-4205.98,0.00052876,120]
[320904353,1711683050199,-230.5581898,0.00052876,120]
[320904354,1711683050208,-500.0,0.00052876,20]
[320904355,1711683050219,-698.06,0.00052876,120]
[320904356,1711683050228,-18302.25,0.00052876,90]
[320904357,1711683050237,-503.51520659,0.00052876,120]
[320904358,1711683050246,-510.44258719,0.00052876,120]
[320904359,1711683050256,-500.0,0.00052876,120]
[320904360,1711683050264,-500.0,0.00052876,120]
[320904361,1711683050274,-256.24680952,0.00052876,120]
[320904362,1711683050283,-630.0,0.00052876,120]
[320904363,1711683050292,-501.88224558,0.00052876,120]
[320904364,1711683050302,-500.0,0.00052876,120]
[320904365,1711683050311,-500.0,0.00052876,120]
[320904366,1711683050320,-500.0,0.00052876,120]
[320904367,1711683050330,-4562.48,0.00052876,21]
[320904368,1711683050340,-180.72878044,0.00052876,120]
[320904369,1711683050349,-500.0,0.00052876,120]
[320904370,1711683050358,-500.0,0.00052876,120]
[320904371,1711683050367,-500.0,0.00052876,120]
[320904372,1711683050377,-500.0,0.00052876,120]
[320904373,1711683050386,-500.0,0.00052876,120]
[320904374,1711683050395,-500.0,0.00052876,120]
[320904375,1711683050405,-741.72,0.00052876,120]
[320904376,1711683050414,-564.97448356,0.00052876,120]
[320904377,1711683050423,-500.0,0.00052876,120]
[320904378,1711683050432,-1319.23,0.00052876,120]
[320904379,1711683050441,-500.0,0.00052876,120]
[320904380,1711683050451,-500.0,0.00052876,120]
[320904381,1711683050461,-503.28284958,0.00052876,120]
[320904382,1711683050470,-3305.99,0.00052876,120]
[320904383,1711683050480,-500.0,0.00052876,120]
[320904384,1711683050489,-500.0,0.00052876,120]
[320904385,1711683050499,-500.0,0.00052876,120]
[320904386,1711683050508,-500.0,0.00052876,120]
[320904387,1711683050518,-1520.3,0.00052876,120]
[320904388,1711683050527,-500.0,0.00052876,120]
[320904389,1711683050537,-555.27084521,0.00052876,120]
[320904390,1711683050547,-500.0,0.00052876,120]
[320904391,1711683050556,-559.96,0.00052876,120]
[320904392,1711683050565,-500.0,0.00052876,120]
[320904393,1711683050575,-500.0,0.00052876,120]
[320904394,1711683050585,-500.0,0.00052876,120]
[320904395,1711683050594,-500.0,0.00052876,120]
[320904396,1711683050604,-598.38,0.00052876,120]
[320904397,1711683050614,-501.54694787,0.00052876,120]
[320904398,1711683050623,-465.56391084,0.00052876,120]
[320904399,1711683050633,-836.94,0.00052876,120]
[320904400,1711683050642,-500.0,0.00052876,120]
[320904401,1711683050652,-500.0,0.00052876,120]
[320904402,1711683050661,-500.0,0.00052876,120]
[320904403,1711683050670,-500.0,0.00052876,120]
[320904404,1711683050679,-3078.25,0.00052876,120]
[320904405,1711683050688,-500.0,0.00052876,120]
[320904406,1711683050698,-500.0,0.00052876,60]
[320904407,1711683050707,-1039.22178216,0.00052876,2]
[320904408,1711683050719,-500.0,0.00052876,120]
[320904409,1711683050729,-500.0,0.00052876,120]
[320904410,1711683050738,-153.1531143,0.00052877,2]
[320904411,1711683050748,-153.0,0.00052877,2]
[320904412,1711683050757,-153.0,0.00052877,2]
[320904413,1711683050766,-788.18,0.00052899,120]
[320904414,1711683050775,-5034.44201122,0.000529,30]
[320904415,1711683050787,-2853.63146807,0.000529,30]